bitfinex/quotes_ETHUSD_20250726
["timestamp","ask_amount","ask_price","bid_price","bid_amount"]
[1753491758822,5.13316074,3721.4,3721.3,0.55]
[1753491759196,2.446,3721.4,3721.3,0.55]
[1753491759401,5.13316074,3721.4,3721.3,0.55]
[1753491759595,5.59406074,3721.4,3721.3,0.55]
[1753491760010,2.9069,3721.4,3721.3,0.55]
[1753491760523,2.446,3721.4,3721.3,0.55]
[1753491761137,5.13316074,3721.4,3721.3,0.55]
[1753491761827,2.446,3721.4,3721.3,0.55]
[1753491763635,0.8317,3722.1,3721.4,0.55]
[1753491763795,2.446,3722.0,3721.8,0.55]
[1753491764001,2.446,3722.0,3721.9,0.4896]
[1753491764002,5.13272756,3722.0,3721.9,0.4896]
[1753491764329,5.13272756,3722.0,3721.7,0.55]
[1753491764543,2.446,3722.0,3721.8,0.4896]
[1753491764827,2.446,3722.0,3721.9,0.4896]
[1753491765021,0.8317,3722.5,3721.9,0.9251]
[1753491765193,2.68653237,3722.3,3721.9,0.4355]
[1753491765395,2.68659565,3722.2,3722.0,0.4896]
[1753491765598,2.446,3722.1,3722.0,0.4896]
[1753491766299,5.13265538,3722.1,3722.0,0.4896]
[1753491766902,2.446,3722.1,3722.0,0.4896]
[1753491771440,2.446,3722.1,3722.0,1.4865]
[1753491771615,2.446,3722.1,3722.0,1.0175]
[1753491773234,2.446,3722.1,3722.0,1.4865]
[1753491775716,2.446,3722.1,3722.0,1.0175]
[1753491778141,2.446,3722.1,3722.0,0.55]
[1753491778341,5.13265538,3722.1,3722.0,0.55]
[1753491778756,2.446,3722.1,3722.0,0.55]
[1753491780530,2.446,3722.1,3722.0,1.0175]
[1753491780848,2.443,3722.1,3722.0,1.4865]
[1753491781027,2.443,3722.1,3722.0,1.0175]
[1753491782035,2.443,3722.1,3722.0,1.4865]
[1753491782240,2.443,3722.1,3722.0,2.45855]
[1753491783466,2.443,3722.1,3722.0,2.3099]
[1753491783841,2.443,3722.1,3722.0,1.4865]
[1753491784054,5.12845114,3722.4,3722.0,1.4865]
[1753491784253,5.12845114,3722.4,3722.1,0.4675]
[1753491785696,5.02161047,3726.6,3722.1,0.8234]
[1753491785697,0.7965,3723.1,3722.1,0.8234]
[1753491785995,2.443,3723.0,3722.5,0.55]
[1753491786195,2.8992,3723.0,3722.6,0.4675]
[1753491786365,2.9004,3723.0,3722.3,0.55]
[1753491786541,3.59967805,3722.9,3722.4,0.4675]
[1753491787062,2.68607805,3722.9,3722.4,0.4675]
[1753491787374,0.9136,3722.8,3722.4,0.4675]
[1753491787534,3.14357279,3722.8,3722.4,0.4675]
[1753491787737,0.4562,3722.7,3722.4,0.4675]
[1753491788158,0.4562,3722.7,3722.5,0.55]
[1753491788358,5.12917279,3722.8,3722.5,0.55]
[1753491788559,5.12917279,3722.8,3722.5,1.0175]
[1753491789260,0.7568,3723.5,3722.6,0.7812]
[1753491789460,2.443,3723.3,3722.7,0.4675]
[1753491789661,2.68601178,3723.0,3722.5,0.55]
[1753491789890,2.6861502,3722.8,3722.5,0.55]
[1753491790087,4.1124,3722.9,3722.0,4.2]
[1753491790088,3.3556,3722.9,3722.0,4.2]
[1753491790275,2.68663353,3722.2,3722.0,4.2]
[1753491790481,0.4562,3722.1,3721.9,0.55]
[1753491790679,0.7568,3722.3,3721.8,0.55]
[1753491790903,5.12941472,3722.5,3722.1,0.55]
[1753491791188,5.12941472,3722.5,3722.2,0.4675]
[1753491791388,2.9004,3722.5,3722.0,0.55]
[1753491791591,2.68658169,3722.3,3722.0,0.55]
[1753491791757,2.68658169,3722.3,3721.5,2.68703257]
[1753491791758,2.68677609,3722.0,3721.5,2.9105]
[1753491791962,0.4562,3721.9,3721.7,0.55]
[1753491792888,3.1441352,3722.0,3721.7,0.55]
[1753491793088,3.6003352,3722.0,3721.7,0.55]
[1753491793291,0.9136,3722.0,3721.7,0.55]
[1753491793499,0.4562,3722.0,3721.7,0.55]
[1753491793676,5.58700209,3722.2,3721.7,0.55]
[1753491793872,2.443,3722.2,3721.8,0.4675]
[1753491794196,2.443,3722.2,3721.9,0.4675]
[1753491794495,2.443,3722.2,3722.0,0.4675]
[1753491795396,2.443,3722.2,3721.8,0.469]
[1753491795576,2.443,3722.2,3722.1,0.4675]
[1753491795771,0.802,3722.7,3722.1,0.4675]
[1753491795979,5.12836227,3722.6,3722.1,0.9365]
[1753491796179,2.442,3722.5,3722.0,0.55]
[1753491796379,2.442,3722.5,3722.1,0.4675]
[1753491796589,2.442,3722.5,3722.3,0.55]
[1753491799399,2.442,3722.5,3722.3,0.469]
[1753491800178,3.48788264,3723.2,3722.6,1.3031]
[1753491800379,2.443,3723.1,3722.6,3.98938798]
[1753491800613,2.443,3723.1,3722.8,0.55]
[1753491800987,2.443,3723.1,3722.8,0.9888]
[1753491801814,2.443,3723.1,3722.9,0.4834]
[1753491802035,2.443,3723.1,3723.0,0.4834]
[1753491805015,3.48765584,3723.5,3722.8,3.23613331]
[1753491805221,5.12765584,3723.5,3723.0,0.4834]
[1753491805416,5.12765584,3723.5,3722.9,0.73431072]
[1753491805594,2.68571857,3723.4,3723.1,0.4834]
[1753491805788,2.68578948,3723.3,3722.9,0.4834]
[1753491806197,3.57798948,3723.3,3722.9,0.4834]
[1753491806725,0.8922,3723.3,3722.9,0.4834]
[1753491807399,3.57799625,3723.3,3722.9,0.4834]
[1753491807600,0.8922,3723.3,3722.9,0.4834]
[1753491808124,3.57801447,3723.3,3722.9,0.4834]
[1753491808624,1.7149,3723.2,3722.7,0.55]
[1753491808829,0.435,3723.1,3722.7,1.57687945]
[1753491808991,0.435,3723.2,3722.8,0.4834]
[1753491809324,0.435,3723.2,3722.9,0.4834]
[1753491809528,1.2799,3723.4,3722.9,0.4834]
[1753491809821,5.5626664,3723.5,3723.0,0.4834]
[1753491810027,2.877,3723.5,3723.1,0.4834]
[1753491810227,5.56265204,3723.5,3723.1,0.4834]
[1753491810524,3.50821284,3723.7,3723.0,0.02686005]
[1753491810525,2.68554863,3723.7,3723.0,0.02686005]
[1753491810696,2.68554863,3723.7,3722.9,1.3431]
[1753491810697,2.68549242,3723.8,3723.3,0.55]
[1753491810891,2.441,3723.7,3723.4,0.4834]
[1753491811091,2.441,3723.7,3723.5,0.9888]
[1753491811291,2.441,3723.7,3723.6,0.4834]
[1753491813126,5.94899082,3724.0,3723.6,0.4834]
[1753491813511,6.84119082,3724.0,3723.6,0.4834]
[1753491814531,2.441,3724.0,3723.5,0.55]
[1753491814719,2.441,3724.0,3723.6,1.41683133]
[1753491814919,2.441,3724.0,3723.6,3.18019427]
[1753491815119,2.441,3724.0,3723.7,0.9222]
[1753491815322,2.441,3724.0,3723.7,0.55]
[1753491815506,2.441,3724.0,3723.8,0.9222]
[1753491815706,2.441,3724.0,3723.9,0.4834]
[1753491816737,3.89883881,3724.5,3724.0,0.55]
[1753491816738,2.441,3724.3,3724.0,0.55]
[1753491817238,2.441,3724.3,3724.1,0.4834]
[1753491817838,2.441,3724.3,3724.0,0.55]
[1753491818017,2.441,3724.3,3724.2,1.0334]
[1753491818217,2.441,3724.3,3724.2,1.26133]
[1753491818440,2.441,3724.3,3724.2,0.77793]
[1753491819340,0.435,3724.6,3724.2,1.26133]
[1753491819530,2.876,3724.6,3724.3,0.4834]
[1753491819733,2.441,3724.6,3724.3,0.4834]
[1753491820116,2.441,3724.6,3724.2,0.77793]
[1753491820444,5.12585676,3724.6,3724.3,0.4834]
[1753491820639,5.12585676,3724.6,3724.2,1.21673]
[1753491820640,5.56085676,3724.6,3724.2,0.77793]
[1753491820811,6.01805676,3724.6,3724.2,1.26133]
[1753491822349,2.441,3724.6,3724.3,1.88671159]
[1753491822566,0.8922,3725.1,3724.5,0.55]
[1753491822841,5.12462617,3725.0,3724.5,1.0334]
[1753491823050,2.441,3724.9,3724.6,0.4834]
[1753491823233,2.441,3724.9,3724.4,0.55]
[1753491823548,0.8922,3724.8,3724.4,0.55]
[1753491823732,2.441,3724.9,3724.5,0.4834]
[1753491823940,5.12569364,3724.9,3724.6,0.4834]
[1753491824526,5.56069364,3724.9,3724.4,1.94463596]
[1753491824725,5.56069364,3724.9,3724.5,0.4834]
[1753491825145,2.684716,3724.8,3724.5,0.4834]
[1753491825348,2.68478997,3724.7,3724.4,1.02243596]
[1753491825550,2.8982,3724.9,3724.0,2.88378791]
[1753491825551,2.68505296,3724.4,3724.0,0.19851079]
[1753491825735,2.44,3724.5,3723.6,6.64]
[1753491826048,2.68534092,3724.0,3723.7,0.55]
[1753491826234,2.68556633,3723.7,3723.4,0.4834]
[1753491826414,2.68556633,3723.7,3723.4,0.2063904]
[1753491826621,3.12056633,3723.7,3723.2,3.68]
[1753491826828,3.12056633,3723.7,3723.3,0.98047805]
[1753491827455,0.435,3723.7,3723.4,0.55]
[1753491827822,2.68544658,3723.8,3723.4,1.0334]
[1753491828022,3.12044658,3723.8,3723.4,1.0334]
[1753491828224,2.68551292,3723.7,3723.4,1.0334]
[1753491828622,3.12043681,3723.8,3723.4,1.0334]
[1753491829156,2.68551399,3723.7,3723.4,1.23832518]
[1753491830155,2.68557791,3723.6,3723.4,1.23832518]
[1753491830531,2.68551161,3723.7,3723.4,1.23832518]
[1753491831319,2.68571735,3723.4,3722.8,0.7624]
[1753491831524,2.68571735,3723.4,3722.3,0.7624]
[1753491831525,3.60068948,3723.3,3722.3,0.7624]
[1753491831732,2.68628167,3722.7,3722.3,0.7624]
[1753491832054,2.68636668,3722.5,3722.0,0.7624]
[1753491832350,0.9149,3722.4,3721.9,2.443]
[1753491832537,0.4636,3722.3,3721.7,1.41881074]
[1753491832858,0.4636,3722.3,3720.8,4.03152914]
[1753491832859,2.68691775,3721.8,3721.4,1.2212]
[1753491833061,2.68691775,3721.8,3721.2,3.0]
[1753491833259,0.9149,3721.7,3721.1,3.6652]
[1753491833552,3.15055864,3721.7,3721.2,0.55]
[1753491833849,0.4513,3721.9,3721.4,0.55]
[1753491834219,0.4513,3721.9,3721.6,0.55]
[1753491834220,0.4636,3721.9,3721.6,0.55]
[1753491834440,5.13074554,3722.0,3721.6,0.55]
[1753491834641,5.13074554,3722.0,3721.5,0.4588]
[1753491834947,5.13074554,3722.0,3721.6,0.55]
[1753491835333,5.13074554,3722.0,3721.4,0.55]
[1753491835536,5.13074554,3722.0,3721.6,0.55]
[1753491835921,5.13074554,3722.0,3721.6,1.0088]
[1753491836157,2.444,3722.0,3721.6,1.0088]
[1753491836646,2.68666265,3722.1,3721.5,0.55]
[1753491836952,1.7093,3722.2,3721.5,0.55]
[1753491836953,2.444,3722.2,3721.8,0.55]
[1753491837155,2.444,3722.2,3721.6,0.55]
[1753491837334,2.444,3722.2,3721.9,0.4588]
[1753491837844,6.69126066,3723.9,3722.1,0.55]
[1753491838035,6.69126066,3723.9,3722.2,0.4588]
[1753491838036,2.68627439,3722.7,3722.2,0.4588]
[1753491838234,2.6862968,3722.6,3722.1,0.55]
[1753491838540,2.6862968,3722.6,3722.3,0.4588]
[1753491840565,2.445,3722.6,3722.5,0.55]
[1753491840762,2.445,3722.6,3722.5,1.04201047]
[1753491840960,2.68602564,3723.0,3722.5,4.64861644]
[1753491840961,2.445,3723.0,3722.5,4.64861644]
[1753491841126,2.445,3723.0,3722.5,3.72831644]
[1753491841325,2.445,3723.0,3722.7,0.55]
[1753491841549,2.445,3723.0,3722.9,0.55]
[1753491843040,2.68573316,3723.4,3722.9,0.4588]
[1753491843041,2.445,3723.3,3722.9,0.4588]
[1753491843253,2.445,3723.3,3723.0,0.4588]
[1753491843444,2.68586227,3723.2,3723.0,0.4588]
[1753491844155,2.68586227,3723.2,3722.8,0.55]
[1753491844358,5.13081,3723.3,3722.8,0.55]
[1753491844547,5.13081,3723.3,3722.9,0.4588]
[1753491844746,0.7751,3723.6,3723.0,1.0088]
[1753491845063,0.7751,3723.6,3723.2,0.55]
[1753491845064,2.445,3723.5,3723.2,0.55]
[1753491845233,7.79306105,3723.9,3723.2,0.55]
[1753491845234,5.13048585,3723.8,3723.3,0.4615]
[1753491845433,5.13048585,3723.8,3723.4,0.4588]
[1753491846166,2.445,3723.8,3723.4,0.4588]
[1753491846467,2.68557543,3723.6,3723.2,1.0088]
[1753491847054,2.68565975,3723.5,3722.9,0.55]
[1753491847260,3.60055975,3723.5,3722.9,1.88519291]
[1753491847461,2.68577855,3723.4,3722.9,1.88519291]
[1753491847769,3.60055195,3723.5,3722.9,1.88519291]
[1753491847972,0.9149,3723.5,3722.9,2.34399291]
[1753491848564,2.68591873,3723.2,3722.9,0.55]
[1753491849675,3.14951873,3723.2,3722.9,0.55]
[1753491850195,0.4636,3723.2,3722.9,0.55]
[1753491850394,2.68580588,3723.3,3722.9,0.55]
[1753491850683,2.68587708,3723.2,3722.9,0.55]
[1753491850884,3.14940667,3723.3,3722.9,0.55]
[1753491851185,3.14940667,3723.3,3722.9,1.0088]
[1753491851685,2.6858733,3723.2,3722.9,1.0088]
[1753491852053,3.1495423,3723.1,3722.9,0.55]
[1753491852371,3.1496059,3723.0,3722.7,0.55]
[1753491852683,3.6009059,3723.0,3722.7,0.55]
[1753491852993,3.60103194,3722.9,3722.6,0.55]
[1753491854790,3.14973194,3722.9,3722.5,0.55]
[1753491855358,3.14973194,3722.9,3722.5,1.0088]
[1753491855586,2.68601923,3723.0,3722.5,2.00877673]
[1753491855791,2.68608478,3722.9,3722.6,0.4588]
[1753491856291,2.68619702,3722.8,3722.5,2.00877673]
[1753491856459,2.68619702,3722.8,3722.5,0.55]
[1753491857259,0.9149,3722.9,3722.5,0.55]
[1753491857460,0.4636,3722.9,3722.5,0.55]
[1753491857660,0.4636,3722.9,3722.5,1.0088]
[1753491858386,2.68603271,3723.0,3722.6,0.4588]
[1753491858592,2.68607931,3722.9,3722.6,0.4588]
[1753491859099,2.68607931,3722.9,3722.5,0.55]
[1753491859498,3.14962173,3723.0,3722.5,1.0088]
[1753491859809,3.60092173,3723.0,3722.5,1.0088]
[1753491860101,3.14962173,3723.0,3722.6,0.4637]
[1753491863405,0.4636,3723.0,3722.6,0.4637]
[1753491863608,3.14961335,3723.0,3722.6,0.4637]
[1753491864104,2.443,3723.1,3722.4,0.55]
[1753491864310,0.4409,3722.9,3722.4,2.17357948]
[1753491864514,0.4409,3722.9,3722.4,1.70987948]
[1753491864700,3.17462982,3723.0,3722.5,0.4637]
[1753491865005,0.4409,3723.0,3722.6,0.4637]
[1753491865188,5.12895251,3723.1,3722.7,0.4637]
[1753491865377,2.443,3723.1,3722.8,0.55]
[1753491865579,2.443,3723.1,3722.9,1.2748]
[1753491865806,2.443,3723.1,3723.0,0.4637]
[1753491866188,2.68580855,3723.3,3723.0,0.4637]
[1753491867608,5.12773488,3723.4,3723.0,0.4637]
[1753491867981,5.12773488,3723.4,3723.1,0.4637]
[1753491869615,2.68580068,3723.3,3723.1,0.4637]
[1753491870001,2.68586162,3723.2,3723.1,0.4637]
[1753491870300,2.68586162,3723.2,3722.9,1.2688]
[1753491870717,2.6858115,3723.3,3722.9,0.8051]
[1753491871015,2.6858115,3723.3,3723.0,0.4637]
[1753491871390,2.68586604,3723.2,3723.0,0.4637]
[1753491871596,2.68586604,3723.2,3722.9,0.8051]
[1753491871803,2.68586604,3723.2,3722.9,1.2688]
[1753491872622,2.68594014,3723.1,3722.7,0.55]
[1753491872925,3.12684014,3723.1,3722.7,1.0137]
[1753491873284,2.6858438,3723.3,3722.8,0.4637]
[1753491873517,2.68593504,3723.1,3722.8,0.4637]
[1753491874285,2.6858838,3723.2,3722.8,0.4637]
[1753491874488,3.1267838,3723.2,3722.8,0.4637]
[1753491874788,2.68593428,3723.1,3722.8,0.4637]
[1753491876325,3.12678282,3723.2,3722.9,0.55]
[1753491876626,2.68594048,3723.1,3722.9,0.55]
[1753491877420,3.12677584,3723.2,3722.9,0.55]
[1753491877603,3.12677584,3723.2,3722.9,0.4637]
[1753491877803,2.68593869,3723.1,3722.9,0.4637]
[1753491879125,3.12678766,3723.2,3722.9,0.4637]
[1753491879827,3.12678766,3723.2,3722.7,0.55]
[1753491879828,2.68588766,3723.2,3722.7,0.55]
[1753491880122,2.68588766,3723.2,3723.0,0.4637]
[1753491881629,2.441,3723.3,3723.1,0.4637]
[1753491881927,5.12679955,3723.3,3723.2,0.4637]
[1753491882134,2.441,3723.3,3723.2,0.4637]
[1753491882310,5.12678948,3723.3,3723.2,0.4637]
[1753491882626,2.68586496,3723.2,3723.0,0.4697]
[1753491882843,2.68586496,3723.2,3723.0,0.4637]
[1753491886148,5.12681025,3723.3,3723.0,0.4637]
[1753491887250,2.68586308,3723.2,3723.0,0.4637]
[1753491888145,5.12681386,3723.3,3723.0,0.4637]
[1753491890369,2.68586891,3723.2,3723.0,0.4637]
[1753491893254,0.7537,3723.1,3722.5,2.68634378]
[1753491893459,0.9331,3723.0,3721.8,0.7851]
[1753491893755,2.6864518,3722.4,3721.9,0.4556]
[1753491893923,2.6864518,3722.4,3722.0,0.55]
[1753491894127,3.1561518,3722.4,3722.0,1.0056]
[1753491894333,0.4697,3722.4,3722.0,1.0056]
[1753491894651,2.446,3722.5,3722.1,1.437]
[1753491894829,2.446,3722.5,3722.2,0.887]
[1753491895228,2.446,3722.5,3722.3,0.4556]
[1753491896441,2.68624424,3722.7,3722.4,0.4556]
[1753491896442,2.446,3722.7,3722.4,0.4556]
[1753491896650,2.446,3723.0,3722.5,1.437]
[1753491896858,2.446,3723.1,3722.7,0.55]
[1753491897184,5.13186129,3723.3,3722.9,0.55]
[1753491897490,5.13186129,3723.3,3723.0,0.4556]
[1753491899247,5.60156129,3723.3,3723.0,0.4556]
[1753491899673,5.60156129,3723.3,3722.9,0.55]
[1753491900045,5.60156129,3723.3,3722.9,1.0056]
[1753491900246,2.68586422,3723.2,3722.9,1.0056]
[1753491901473,5.13180546,3723.3,3722.7,0.55]
[1753491901691,2.445,3723.5,3723.1,0.55]
[1753491901901,5.13064668,3723.5,3723.1,0.55]
[1753491902194,2.445,3723.5,3723.2,0.887]
[1753491902361,5.13064927,3723.5,3723.2,0.887]
[1753491902562,5.13064927,3723.5,3723.2,0.4556]
[1753491902875,2.6857216,3723.4,3723.2,0.4556]
[1753491903066,2.6857216,3723.4,3723.1,0.55]
[1753491903391,2.6857216,3723.4,3723.1,1.0056]
[1753491904298,5.60036428,3723.5,3723.1,0.55]
[1753491904487,2.445,3723.5,3723.2,0.4556]
[1753491904796,5.13064962,3723.5,3723.2,0.4556]
[1753491905201,2.446,3723.6,3723.3,1.0056]
[1753491905398,2.446,3723.6,3723.4,0.4556]
[1753491905586,2.446,3723.6,3723.5,0.4556]
[1753491906797,2.446,3723.6,3723.5,0.55]
[1753491906996,2.446,3723.6,3723.5,1.0056]
[1753491907379,2.445,3723.8,3723.5,1.0056]
[1753491907774,2.9147,3723.8,3723.5,0.55]
[1753491908413,2.445,3723.8,3723.4,0.7822]
[1753491908599,0.9331,3723.7,3723.2,0.55]
[1753491908780,2.445,3723.8,3723.2,0.55]
[1753491908781,0.9331,3723.6,3723.2,0.55]
[1753491908970,0.9331,3723.6,3723.2,0.4556]
[1753491909172,2.68563029,3723.6,3723.3,0.4556]
[1753491910591,2.68552356,3723.7,3723.3,0.4556]
[1753491910905,2.68552356,3723.7,3723.4,0.4556]
[1753491911204,5.13045585,3723.8,3723.5,0.4556]
[1753491911405,2.445,3723.8,3723.6,0.4556]
[1753491911585,2.68530033,3724.0,3723.6,0.4556]
[1753491911784,5.59900033,3724.0,3723.6,0.4556]
[1753491912729,0.4697,3724.0,3723.6,0.4556]
[1753491912941,0.4697,3724.0,3723.5,1.2223]
[1753491912942,2.6851465,3724.2,3723.7,0.887]
[1753491913105,2.6851465,3724.2,3723.5,3.47648686]
[1753491913285,2.68521269,3724.1,3723.6,1.437]
[1753491913483,2.68521269,3724.1,3723.6,0.55]
[1753491913684,2.68521269,3724.1,3723.7,0.887]
[1753491913983,2.68521269,3724.1,3723.8,0.887]
[1753491914211,2.68521269,3724.1,3723.9,0.4556]
[1753491914692,2.68516178,3724.2,3723.9,0.4556]
[1753491915122,2.68521498,3724.1,3723.9,0.4556]
[1753491915276,2.68528464,3724.0,3723.6,0.9814]
[1753491915480,2.68528464,3724.0,3723.7,0.4556]
[1753491915714,3.15498464,3724.0,3723.7,0.4556]
[1753491915929,3.15498464,3724.0,3723.6,0.55]
[1753491916085,0.4697,3724.0,3723.6,0.55]
[1753491916394,0.4697,3724.0,3723.7,0.4556]
[1753491916722,2.68523459,3724.1,3723.7,0.4556]
[1753491916877,3.15493459,3724.1,3723.7,0.4556]
[1753491918635,3.15493459,3724.1,3723.8,0.4556]
[1753491920617,0.9229,3724.0,3723.5,2.992]
[1753491920792,2.68540691,3723.9,3723.5,0.55]
[1753491920994,0.9229,3723.8,3723.5,0.55]
[1753491921199,0.4688,3723.8,3723.5,0.55]
[1753491921420,0.4541,3723.7,3723.5,0.55]
[1753491921625,0.4541,3723.6,3723.1,4.40239332]
[1753491921918,0.7981,3724.1,3723.1,4.40239332]
[1753491921919,3.60855277,3723.5,3723.2,2.442]
[1753491922219,0.9229,3723.5,3723.2,2.442]
[1753491922625,0.4541,3723.5,3723.2,2.442]
[1753491922924,2.68598256,3723.1,3722.7,2.443]
[1753491923131,2.68598256,3723.1,3722.7,2.6434522]
[1753491923288,2.68601215,3723.0,3722.7,0.4901]
[1753491923494,2.68602475,3723.0,3722.7,0.4901]
[1753491924110,2.68607994,3722.9,3722.7,0.4901]
[1753491926427,2.68607994,3722.9,3722.6,2.446]
[1753491926734,0.8101,3723.4,3722.6,1.0401]
[1753491926928,2.68618231,3722.8,3722.6,1.0401]
[1753491927129,2.68618231,3722.8,3722.6,1.23734694]
[1753491927326,2.68618231,3722.8,3722.6,0.74724694]
[1753491927529,2.68609396,3722.9,3722.6,1.23734694]
[1753491927831,2.68609396,3722.9,3722.7,0.4901]
[1753491928045,2.68601746,3723.0,3722.7,0.4901]
[1753491928412,2.68601746,3723.0,3722.8,0.4901]
[1753491928932,2.68602069,3723.0,3722.8,0.4901]
[1753491929127,2.68595071,3723.1,3722.6,0.55]
[1753491929332,2.6860059,3723.0,3722.9,0.4901]
[1753491929729,2.6860059,3723.0,3722.7,0.4711]
[1753491929932,2.6860059,3723.0,3722.7,0.4901]
[1753491930244,2.6860059,3723.0,3722.6,0.55]
[1753491930555,0.4541,3722.9,3722.5,2.445]
[1753491930851,2.68605317,3723.0,3722.6,1.0401]
[1753491931250,2.68605317,3723.0,3722.6,1.0211]
[1753491931408,2.68605317,3723.0,3722.7,0.4901]
[1753491932250,3.14006501,3723.1,3722.7,0.4901]
[1753491932421,2.68617692,3722.8,3722.5,2.995]
[1753491932629,3.14027692,3722.8,3722.5,0.55]
[1753491932948,2.68617692,3722.8,3722.5,1.0401]
[1753491933147,3.14027692,3722.8,3722.5,0.55]
[1753491933826,2.68617692,3722.8,3722.6,0.4901]
[1753491934569,2.68610172,3722.9,3722.6,0.4901]
[1753491934718,2.68607805,3722.9,3722.6,0.4901]
[1753491935136,2.68615529,3722.8,3722.6,0.4901]
[1753491935340,2.68613105,3722.9,3722.5,0.55]
[1753491935548,6.05284614,3723.1,3722.6,0.4901]
[1753491935879,2.68613459,3722.9,3722.6,0.4901]
[1753491936346,2.68613459,3722.9,3722.5,1.0211]
[1753491936664,2.68613459,3722.9,3722.7,0.4901]
[1753491937156,2.6861502,3722.8,3722.7,0.4901]
[1753491937363,2.6861502,3722.8,3722.5,1.5112]
[1753491937542,2.6861502,3722.8,3722.6,0.4901]
[1753491940362,2.68609137,3722.9,3722.6,0.4901]
[1753491940735,2.68615537,3722.8,3722.6,0.4901]
[1753491941661,2.68615537,3722.8,3722.5,1.0211]
[1753491941834,2.68615537,3722.8,3722.7,0.4901]
[1753491942036,0.4541,3723.0,3722.4,0.55]
[1753491942237,2.68657207,3722.3,3722.0,2.64619119]
[1753491942436,5.90359173,3722.8,3722.0,2.442]
[1753491942638,3.14073863,3722.2,3722.0,2.442]
[1753491942838,2.68665922,3722.1,3721.8,0.55]
[1753491943138,2.68673331,3722.0,3721.7,0.8132]
[1753491943337,1.2295,3722.2,3721.7,2.445]
[1753491943566,3.14081891,3722.1,3721.7,2.9351]
[1753491943872,0.4541,3722.1,3721.8,0.4901]
[1753491944073,0.4541,3722.1,3721.9,0.55]
[1753491944236,1.2442,3722.2,3721.9,0.55]
[1753491944439,5.13141831,3722.5,3722.0,0.4901]
[1753491944440,2.445,3722.5,3722.0,0.4901]
[1753491944644,5.13143253,3722.5,3722.0,0.9612]
[1753491944945,2.68645545,3722.4,3722.1,0.4901]
[1753491945165,2.68645545,3722.4,3722.2,0.4901]
[1753491945464,2.445,3722.5,3722.2,0.4901]
[1753491945465,5.13138466,3722.5,3722.2,0.4901]
[1753491945675,2.68644982,3722.4,3722.2,0.4901]
[1753491946875,2.445,3722.5,3722.2,0.4901]
[1753491947175,2.68644484,3722.4,3722.2,0.4901]
[1753491947556,2.445,3722.5,3722.3,0.9612]
[1753491947787,2.445,3722.5,3722.4,0.4901]
[1753491949777,2.68630749,3722.6,3722.2,1.0401]
[1753491951180,2.68630749,3722.6,3722.3,0.4692]
[1753491951979,2.444,3722.7,3721.9,0.7973]
[1753491952182,2.68664074,3722.2,3721.9,0.55]
[1753491952380,2.68668795,3722.1,3721.9,0.55]
[1753491952584,2.68672756,3722.0,3721.9,0.55]
[1753491952972,3.61457943,3722.1,3721.9,0.55]
[1753491953146,0.4589,3722.0,3721.9,0.55]
[1753491953981,0.469,3722.1,3721.9,0.55]
[1753491954177,0.4589,3722.2,3721.9,0.55]
[1753491954386,3.14548938,3722.2,3721.9,0.55]
[1753491954877,3.14548938,3722.2,3721.9,1.0192]
[1753491955083,2.68658938,3722.2,3721.9,1.0192]
[1753491955279,3.46553409,3722.3,3721.9,1.0192]
[1753491955683,3.46553409,3722.3,3722.0,0.4692]
[1753491956792,2.68658585,3722.2,3722.0,0.4692]
[1753491957163,2.68658585,3722.2,3721.9,0.55]
[1753491957352,2.68658585,3722.2,3721.9,1.0192]
[1753491959194,3.92443397,3722.3,3721.9,1.0192]
[1753491959998,3.92443397,3722.3,3722.0,0.4692]
[1753491960507,2.68659432,3722.2,3722.0,0.4692]
[1753491960859,3.92443254,3722.3,3722.0,0.4692]
[1753491961260,2.68653254,3722.3,3722.0,0.4692]
[1753491961479,2.68653254,3722.3,3722.1,0.4692]
[1753491961670,2.68653254,3722.3,3721.9,0.55]
[1753491961993,2.68659892,3722.2,3721.9,1.0192]
[1753491962193,0.4589,3722.3,3721.9,1.0192]
[1753491962360,2.68667206,3722.1,3721.9,1.0192]
[1753491962761,2.68667206,3722.1,3721.7,1.0192]
[1753491962956,2.68667206,3722.1,3721.7,0.55]
[1753491963186,2.445,3722.4,3721.6,0.20141182]
[1753491963460,3.1456647,3722.0,3721.7,0.55]
[1753491963661,2.68688064,3721.8,3721.5,0.4692]
[1753491964010,2.68688064,3721.8,3721.3,3.4356]
[1753491964011,3.61476881,3721.9,3721.4,2.993]
[1753491964312,2.68700274,3721.7,3721.4,2.993]
[1753491964461,2.68700274,3721.7,3721.4,3.4622]
[1753491964863,2.68686039,3721.9,3721.5,0.4692]
[1753491965172,3.45433677,3722.0,3721.6,0.4692]
[1753491965374,2.68681546,3721.9,3721.7,0.4692]
[1753491965589,2.68615159,3722.8,3721.7,0.38978]
[1753491965786,6.6695,3722.7,3721.8,1.4548]
[1753491965987,2.68657386,3722.3,3721.9,0.9048]
[1753491966198,2.68661309,3722.2,3721.9,0.4356]
[1753491966390,2.68661309,3722.2,3722.0,0.4692]
[1753491966912,2.68671619,3722.1,3721.8,0.55]
[1753491967301,2.68671619,3722.1,3721.8,1.0192]
[1753491968785,2.68680449,3721.9,3721.4,0.4692]
[1753491969108,3.14564854,3722.0,3721.6,0.55]
[1753491969328,3.14564854,3722.0,3721.6,1.0192]
[1753491969481,3.14564854,3722.0,3721.6,0.55]
[1753491969677,0.8145,3722.1,3721.6,0.55]
[1753491970078,2.6866589,3722.1,3721.7,0.4692]